[Event "17th Delhi GM Open 2019"]
[Site "Delhi"]
[Date "2019.01.11"]
[Round "4"]
[White "Praveen Kumar C"]
[Black "Muthaiah AL"]
[Result "0-1"]
[ECO "E21"]
[WhiteElo "2233"]
[BlackElo "2406"]
[Annotator "NA"]
[PlyCount "46"]
[EventDate "2019.01.09"]
[EventType "swiss"]
[EventCountry "IND"]
[SourceTitle "playchess.com"]
[Source "ChessBase"]
[SourceQuality "1"]
[TimeControl "5400+30"]

1. d4 {[%emt 0:00:00]} Nf6 {[%emt 0:00:39]} 2. c4 {[%emt 0:00:00]} e6 {[%emt 0:00:20]} 3. Nc3 {[%emt 0:00:00]} Bb4 {[%emt 0:00:12]} 4. Nf3 {[%emt 0:00:00]} O-O {[%emt 0:00:22]} 5. g3 {[%emt 0:00:00]} b6 {[%emt 0:02:27]} 6. Bg2 {[%emt 0:00:48]} Bb7 {[%emt 0:00:21]} 7. O-O {[%emt 0:02:38]} Bxc3 {[%emt 0:02:04]} 8. bxc3 {[%emt 0:00:05]} d6 {[%emt 0:02:06]} 9. a4 {[%emt 0:06:13]} Nc6 {[%emt 0:03:22]} 10. Nd2 {[%emt 0:03:17]} Na5 11. e4 c5 12. f4 cxd4 13. cxd4 Rc8 14. Bb2 Nxc4 15. Nxc4 Rxc4 16. Qb3 Qc7 17. Rfe1 Rc2 18. Ba3 Rxg2+ 19. Kxg2 Nxe4 20. Qe3 Nf6+ 21. Kh3 Qc2 22. Rg1 Ng4 23. Kxg4 Qg6+ 0-1

[Event "17th Delhi GM Open 2019"]
[Site "Delhi"]
[Date "2019.01.11"]
[Round "4"]
[White "Swati Ghate"]
[Black "Sahoo, Utkal Ranjan"]
[Result "0-1"]
[ECO "C84"]
[WhiteElo "2216"]
[BlackElo "2388"]
[Annotator "ChessBase"]
[PlyCount "130"]
[EventDate "2019.01.09"]
[EventType "swiss"]
[EventCountry "IND"]
[SourceTitle "playchess.com"]
[Source "ChessBase"]
[SourceQuality "1"]
[TimeControl "5400+30"]

1. e4 {[%emt 0:05:52]} e5 {[%emt 0:00:00]} 2. Nf3 {[%emt 0:00:28]} Nc6 {[%emt 0:00:00]} 3. Bb5 {[%emt 0:00:06]} a6 {[%emt 0:00:00]} 4. Ba4 {[%emt 0:00:07]} Nf6 {[%emt 0:00:06]} 5. O-O {[%emt 0:00:07]} Be7 {[%emt 0:00:06]} 6. d3 {[%emt 0:00:09]} b5 {[%emt 0:01:07]} 7. Bb3 {[%emt 0:06:20]} d6 {[%emt 0:00:14]} 8. a3 {[%emt 0:00:12]} O-O {[%emt 0:04:02]} 9. Nc3 {[%emt 0:00:34]} Bg4 {[%emt 0:09:57]} 10. Be3 {[%emt 0:00:32]} Qd7 {[%emt 0:01:14]} 11. h3 {[%emt 0:05:31]} Bh5 {[%emt 0:00:30]} 12. Nd5 Nxd5 {[%emt 0:10:12]} 13. Bxd5 {[%emt 0:01:19]} Bg6 14. a4 {[%emt 0:12:15]} Rab8 {[%emt 0:04:59]} 15. axb5 {[%emt 0:01:21]} axb5 {[%emt 0:00:06]} 16. c3 {[%emt 0:01:43]} Kh8 17. Ra6 {[%emt 0:19:58]} Nd8 {[%emt 0:02:26]} 18. Ra7 {[%emt 0:06:52]} Nc6 {[%emt 0:01:17]} 19. Ra6 {[%emt 0:00:09]} Nd8 {[%emt 0:00:17]} 20. Nh2 {[%emt 0:04:17]} c6 21. Bb3 {[%emt 0:06:09]} Nb7 {[%emt 0:09:49]} 22. Ra7 {[%emt 0:02:36]} Ra8 {[%emt 0:02:38]} 23. Qa1 {[%emt 0:00:18]} Rxa7 {[%emt 0:00:17]} 24. Qxa7 {[%emt 0:00:05]} f5 {[%emt 0:01:17]} 25. f3 {[%emt 0:01:51]} d5 {[%emt 0:03:06]} 26. exf5 {[%emt 0:04:46]} Bxf5 {[%emt 0:00:28]} 27. d4 {[%emt 0:00:07]} Bd6 28. Ng4 {[%emt 0:04:28]} exd4 {[%emt 0:08:53]} 29. cxd4 {[%emt 0:00:42]} Bb8 {[%emt 0:02:32]} 30. Qa3 {[%emt 0:01:23]} Bd6 {[%emt 0:03:00]} 31. Qa1 {[%emt 0:00:33]} Qc7 {[%emt 0:05:39]} 32. Qc1 {[%emt 0:05:23]} Na5 {[%emt 0:01:56]} 33. Bc2 {[%emt 0:00:02]} Nc4 {[%emt 0:01:03]} 34. Bxf5 {[%emt 0:01:03]} Rxf5 {[%emt 0:00:07]} 35. Bf2 {[%emt 0:02:29]} Bf4 {[%emt 0:08:03]} 36. Qc2 {[%emt 0:00:22]} Rf8 {[%emt 0:01:02]} 37. b3 {[%emt 0:00:37]} Nd6 {[%emt 0:01:19]} 38. Re1 Kg8 {[%emt 0:03:39]} 39. Ne5 {[%emt 0:04:04]} Rc8 {[%emt 0:00:17]} 40. Nd3 {[%emt 0:00:36]} Nf5 {[%emt 0:02:05]} 41. Qe2 {[%emt 0:01:01]} Bh2+ {[%emt 0:05:36]} 42. Kh1 {[%emt 0:00:13]} Qd6 {[%emt 0:03:31]} 43. f4 {[%emt 0:03:47]} Bg3 {[%emt 0:00:10]} 44. Qg4 {[%emt 0:00:30]} Bxf2 {[%emt 0:00:06]} 45. Qxf5 {[%emt 0:00:05]} Rf8 {[%emt 0:00:06]} 46. Qe6+ {[%emt 0:00:06]} Qxe6 {[%emt 0:00:16]} 47. Rxe6 {[%emt 0:00:02]} Bg3 {[%emt 0:03:20]} 48. Rxc6 {[%emt 0:01:14]} Re8 {[%emt 0:00:05]} 49. Kg1 {[%emt 0:00:56]} Re3 {[%emt 0:01:09]} 50. Rc8+ {[%emt 0:00:13]} Kf7 {[%emt 0:00:16]} 51. Ne5+ {[%emt 0:00:40]} Ke6 {[%emt 0:00:45]} 52. Nf3 {[%emt 0:01:08]} Rxb3 {[%emt 0:00:27]} 53. Rc1 {[%emt 0:00:25]} Bxf4 {[%emt 0:00:40]} 54. Re1+ {[%emt 0:00:18]} Kd6 {[%emt 0:00:48]} 55. Kf2 {[%emt 0:00:08]} b4 {[%emt 0:01:27]} 56. Re2 {[%emt 0:00:12]} Rd3 {[%emt 0:01:45]} 57. g3 {[%emt 0:00:44]} Bc1 {[%emt 0:00:16]} 58. Rc2 {[%emt 0:00:42]} Bh6 {[%emt 0:01:00]} 59. Rc8 {[%emt 0:00:43]} b3 {[%emt 0:00:24]} 60. Rb8 {[%emt 0:00:17]} Rc3 {[%emt 0:01:39]} 61. Ke2 {[%emt 0:00:25]} Bc1 {[%emt 0:00:33]} 62. g4 {[%emt 0:00:37]} b2 {[%emt 0:00:30]} 63. h4 {[%emt 0:00:21]} Kc7 {[%emt 0:00:34]} 64. Rb5 {[%emt 0:00:20]} Re3+ {[%emt 0:00:06]} 65. Kf2 {[%emt 0:00:15]} Re6 {[%emt 0:00:08]} 0-1